Cogmind - Beta 11.1 *** ADVENTURER MODE // 2022.12.19 @ 22:25:48 Player: SuDmit Result: Self-destructed Performance ------------- Evolutions (5) 2500 Regions Visited (9) 1800 Robots Destroyed (1) 5 Value Destroyed (47) 47 Prototype IDs (0) 0 Alien Tech Used (0) 0 Bonus (2487) 2487 TOTAL SCORE: 6839 Bonus ------- Pacifist 1987 Entered DSFs 500 Cogmind --------- Core Integrity 115/1000 Matter 283/300 Energy 100/100 System Corruption 3% Temperature Cool (0) Movement Core (50) Location -5/Factory Parts ------- > --- POWER (3) -------- (None) > --- PROPULSION (10) -- (None) > --- UTILITY (2) ------ (None) > --- WEAPON (2) ------- (None) > --- INVENTORY (5) ---- (None) Peak State ------------ > --- POWER ------------ (None) > --- PROPULSION ------- VTOL Module > --- UTILITY ---------- (None) > --- WEAPON ----------- (None) > --- INVENTORY -------- (None) [Rating: 2] Favorites ----------- Power None Propulsion VTOL Module Flight Unit VTOL Module Utility None Weapon None Build | -11 -10 -10 -9 -9 -8 -7 -7 -6 -5 ------- Run | Scr Mat Min Mat Min Mat Fac DSF Fac Fac Slots Evolved 10 | . . . 2 . 2 2 . 2 2 Power 2 | . . . 1 . . . . . 1 Propulsion 8 | . . . 1 . 2 2 . 2 1 Utility . | . . . . . . . . . . Weapon . | . . . . . . . . . . Parts Attached 2 | . 1 . 1 . . . . . . Power . | . . . . . . . . . . Engine . | . . . . . . . . . . Core . | . . . . . . . . . . Reactor . | . . . . . . . . . . Propulsion 2 | . 1 . 1 . . . . . . Treads . | . . . . . . . . . . Leg . | . . . . . . . . . . Wheel . | . . . . . . . . . . Hover . | . . . . . . . . . . Flight 2 | . 1 . 1 . . . . . . Utility . | . . . . . . . . . . Device . | . . . . . . . . . . Storage . | . . . . . . . . . . Processor . | . . . . . . . . . . Hackware . | . . . . . . . . . . Protection . | . . . . . . . . . . Artifact . | . . . . . . . . . . Weapon . | . . . . . . . . . . Energy Gun . | . . . . . . . . . . Energy Cannon . | . . . . . . . . . . Ballistic Gun . | . . . . . . . . . . Ballistic Cannon . | . . . . . . . . . . Launcher . | . . . . . . . . . . Special Weapon . | . . . . . . . . . . Impact Weapon . | . . . . . . . . . . Slashing Weapon . | . . . . . . . . . . Piercing Weapon . | . . . . . . . . . . Special Melee Weapon . | . . . . . . . . . . Unidentified Prototypes . | . . . . . . . . . . Parts Lost 2 | . . 1 . . 1 . . . . Power . | . . . . . . . . . . Propulsion 2 | . . 1 . . 1 . . . . Utility . | . . . . . . . . . . Weapon . | . . . . . . . . . . Highest Loss Streak 1 | . . 1 . . 1 . . . . To Critical Strikes . | . . . . . . . . . . Average Slot Usage (%) 2 | . 14 2 4 11 1 . . . . Flight 2 | . 14 2 4 11 1 . . . . Naked Turns 568 | . 4 65 54 . 127 20 31 86 181 Heaviest Build . | . . . . . . . . . . Greatest Support 4 | 3 4 4 4 4 4 3 3 3 3 Greatest Overweight (x) . | . . . . . . . . . . Average Overweight (x) . | . . . . . . . . . . Largest Inventory Capacity 5 | 5 5 5 5 5 5 5 5 5 5 Average Capacity 5 | 5 5 5 5 5 5 5 5 5 5 Most Carried . | . . . . . . . . . . Average Carried . | . . . . . . . . . . Final Capacity 5 | 5 5 5 5 5 5 5 5 5 5 Final Carried . | . . . . . . . . . . Class Distribution -------------------- 100% | Mutant Dominant Class ---------------- Mutant | -10/Materials Mutant | -10/Mines Mutant | -9/Materials Mutant | -9/Mines Mutant | -8/Materials Mutant | -7/Factory Mutant | -7/DSF Mutant | -6/Factory Mutant | -5/Factory Resources | -11 -10 -10 -9 -9 -8 -7 -7 -6 -5 ----------- Run | Scr Mat Min Mat Min Mat Fac DSF Fac Fac Matter Collected 182 | 182 . . . . . . . . . Remotely . | . . . . . . . . . . Salvage Created 12 | . . . . . . . . . 12 Parts 1 | . . . . . . . . . 1 Haulers Intercepted . | . . . . . . . . . . Recyclers Shooed . | . . . . . . . . . . Parts Field Recycled . | . . . . . . . . . . Retrieved Matter . | . . . . . . . . . . Parts Self-Destructed . | . . . . . . . . . . Prevented . | . . . . . . . . . . Kills | -11 -10 -10 -9 -9 -8 -7 -7 -6 -5 ------- Run | Scr Mat Min Mat Min Mat Fac DSF Fac Fac Combat Hostiles Destroyed 1 | . . . . . . . . . 1 AOE 1 | . . . . . . . . . 1 Classes Destroyed 1 | . . . . . . . . . 1 Swarmer 1 | . . . . . . . . . 1 Best Kill Streak 1 | . . . . . . . . . 1 Combat Bots Only 1 | . . . . . . . . . 1 Max Kills in Single Turn 1 | . . . . . . . . . 1 Gunslinging . | . . . . . . . . . . Exploded 1 | . . . . . . . . . 1 Melee . | . . . . . . . . . . Uniques/NPCs Destroyed . | . . . . . . . . . . Combat | -11 -10 -10 -9 -9 -8 -7 -7 -6 -5 -------- Run | Scr Mat Min Mat Min Mat Fac DSF Fac Fac Damage Taken 1844 | . 61 169 232 8 171 . 318 . 885 Core 1795 | . 44 162 232 8 146 . 318 . 885 Absorbed by Shields 49 | . . . . . . . . . 49 Core Remaining (%) 64 | 100 . 17 . 40 73 . 54 100 . Volleys Fired . | . . . . . . . . . . Largest . | . . . . . . . . . . Hottest . | . . . . . . . . . . Shots Fired . | . . . . . . . . . . Gun . | . . . . . . . . . . Cannon . | . . . . . . . . . . Launcher . | . . . . . . . . . . Special . | . . . . . . . . . . Kinetic . | . . . . . . . . . . Thermal . | . . . . . . . . . . Explosive . | . . . . . . . . . . Electromagnetic . | . . . . . . . . . . Robot Hit Streak . | . . . . . . . . . . Robot Miss Streak . | . . . . . . . . . . Penetration Max . | . . . . . . . . . . Secondary Targets . | . . . . . . . . . . Shots Hit Robots . | . . . . . . . . . . Core Hits . | . . . . . . . . . . Critical Kills . | . . . . . . . . . . Critical Parts Destroyed . | . . . . . . . . . . Critical Strikes . | . . . . . . . . . . Melee Attacks . | . . . . . . . . . . Impact . | . . . . . . . . . . Slashing . | . . . . . . . . . . Piercing . | . . . . . . . . . . Sneak Attacks . | . . . . . . . . . . Combat Hostiles . | . . . . . . . . . . Follow-up Attacks . | . . . . . . . . . . Damage Inflicted 151 | . . 10 . . . . . . 141 Guns . | . . . . . . . . . . Cannons . | . . . . . . . . . . Explosions 141 | . . . . . . . . . 141 Melee . | . . . . . . . . . . Ramming 10 | . . 10 . . . . . . . Kinetic . | . . . . . . . . . . Thermal . | . . . . . . . . . . Explosive 141 | . . . . . . . . . 141 Electromagnetic . | . . . . . . . . . . Impact . | . . . . . . . . . . Slashing . | . . . . . . . . . . Piercing . | . . . . . . . . . . Highest Corruption 3 | . . . 1 1 . . . . 3 Average Corruption 1 | . . . 1 1 . . . . 1 Corruption Purged . | . . . . . . . . . . Corruption Blocked . | . . . . . . . . . . Effects 1 | . . . . . . . . . 1 Data Loss (minor) 1 | . . . . . . . . . 1 Overload Shots . | . . . . . . . . . . Overflow Damage 116 | . . . . . . . . . 116 Projectiles . | . . . . . . . . . . Explosions 116 | . . . . . . . . . 116 Melee . | . . . . . . . . . . Knockbacks . | . . . . . . . . . . Impact . | . . . . . . . . . . Kinetic . | . . . . . . . . . . Secondary . | . . . . . . . . . . Self-Inflicted Damage 5 | . . 5 . . . . . . . Shots . | . . . . . . . . . . Rammed 3 | 1 . 2 . . . . . . . Targets Rammed 3 | 1 . 2 . . . . . . . Kicked . | . . . . . . . . . . Crushed . | . . . . . . . . . . Highest Temperature 2 | . . . 2 . . . . . . Average Temperature 2 | . . . 2 . . . . . . Received Heat Transfer 267 | . 45 15 120 6 45 . . . 36 Siege Activations . | . . . . . . . . . . Robots Corrupted . | . . . . . . . . . . Combat Hostiles . | . . . . . . . . . . Parts Fried . | . . . . . . . . . . Impact Corruptions . | . . . . . . . . . . Robots Melted . | . . . . . . . . . . Combat Hostiles . | . . . . . . . . . . Parts Melted . | . . . . . . . . . . Heat Transferred . | . . . . . . . . . . Parts Sabotaged . | . . . . . . . . . . Parts Stolen . | . . . . . . . . . . Parts Stripped . | . . . . . . . . . . Power Chain Reactions . | . . . . . . . . . . Missiles Intercepted . | . . . . . . . . . . Alert | -11 -10 -10 -9 -9 -8 -7 -7 -6 -5 ------- Run | Scr Mat Min Mat Min Mat Fac DSF Fac Fac Peak Influence 324 | . 25 28 84 42 38 14 25 26 324 Initial 27 | . . 8 9 27 13 14 10 11 10 Average 41 | . 9 14 47 27 25 14 21 15 95 Maximum Alert Level 1 | . . . . . . . . . 1 Low Security (%) 96 | 100 100 100 100 100 100 100 100 100 86 Level 1 3 | . . . . . . . . . 13 Level 2 . | . . . . . . . . . . Level 3 . | . . . . . . . . . . Level 4 . | . . . . . . . . . . Level 5 . | . . . . . . . . . . High Security . | . . . . . . . . . . Max Security . | . . . . . . . . . . Squads Dispatched 8 | . 1 . 3 . . . 1 . 3 Investigation 4 | . 1 . 2 . . . . . 1 Extermination . | . . . . . . . . . . Reinforcement 4 | . . . 1 . . . 1 . 2 Assault . | . . . . . . . . . . Garrison . | . . . . . . . . . . Intercept . | . . . . . . . . . . Searches Triggered . | . . . . . . . . . . Construction Impeded . | . . . . . . . . . . Haulers Reinforced . | . . . . . . . . . . Active Scanning Responses . | . . . . . . . . . . Cargo Convoy Interrupts . | . . . . . . . . . . Stealth | -11 -10 -10 -9 -9 -8 -7 -7 -6 -5 --------- Run | Scr Mat Min Mat Min Mat Fac DSF Fac Fac Distress Signals 5 | . . . 2 . . . . . 3 Communications Jammed . | . . . . . . . . . . Distress Signals . | . . . . . . . . . . Times Spotted 63 | . 7 8 10 3 4 . 4 2 25 Peak Tracking Total 15 | . 7 6 10 3 5 . 4 2 15 Tactical Retreats 6 | . . 1 . 1 . . . . 4 Traps | -11 -10 -10 -9 -9 -8 -7 -7 -6 -5 ------- Run | Scr Mat Min Mat Min Mat Fac DSF Fac Fac Traps Triggered 2 | . . . 1 . . . . . 1 Indirectly . | . . . . . . . . . . Trap Hack Attempts . | . . . . . . . . . . Triggered . | . . . . . . . . . . Disarmed . | . . . . . . . . . . Reprogrammed . | . . . . . . . . . . Reused . | . . . . . . . . . . Traps Extracted . | . . . . . . . . . . Installed . | . . . . . . . . . . Triggered . | . . . . . . . . . . Machines | -11 -10 -10 -9 -9 -8 -7 -7 -6 -5 ---------- Run | Scr Mat Min Mat Min Mat Fac DSF Fac Fac Machines Disabled 2 | . . . . . . . . . 2 Max in Single Turn 2 | . . . . . . . . . 2 Machines Sabotaged . | . . . . . . . . . . Garrisons Compromised . | . . . . . . . . . . Overloaded Fab Kills . | . . . . . . . . . . Hacking | -11 -10 -10 -9 -9 -8 -7 -7 -6 -5 --------- Run | Scr Mat Min Mat Min Mat Fac DSF Fac Fac Machines Accessed 10 | . 3 . 1 . 1 1 . 1 3 Terminals 10 | . 3 . 1 . 1 1 . 1 3 Fabricators . | . . . . . . . . . . Repair Stations . | . . . . . . . . . . Recycling Units . | . . . . . . . . . . Scanalyzers . | . . . . . . . . . . Garrison Access . | . . . . . . . . . . Total Hacks 33 | . 12 . 3 . 3 1 . 2 12 Successful 16 | . 5 . 2 . 2 1 . 1 5 Failed 17 | . 7 . 1 . 1 . . 1 7 Catastrophic 3 | . 1 . . . . . . 1 1 Database Lockouts . | . . . . . . . . . . Manual 32 | . 12 . 3 . 3 . . 2 12 Terminals 33 | . 12 . 3 . 3 1 . 2 12 Fabricators . | . . . . . . . . . . Repair Stations . | . . . . . . . . . . Recycling Units . | . . . . . . . . . . Scanalyzers . | . . . . . . . . . . Garrison Access . | . . . . . . . . . . Terminal Hacks 4 | . 2 . . . 1 1 . . . Open DSF 1 | . . . . . . 1 . . . Branch Access Points 1 | . 1 . . . . . . . . Terminal Index 2 | . 1 . . . 1 . . . . Fabricator Hacks . | . . . . . . . . . . Repair Station Hacks . | . . . . . . . . . . Recycling Unit Hacks . | . . . . . . . . . . Scanalyzer . | . . . . . . . . . . Garrison Access Hacks . | . . . . . . . . . . Unauthorized Hacks 12 | . 3 . 2 . 1 . . 1 5 Terminals 12 | . 3 . 2 . 1 . . 1 5 Assimilate 1 | . . . . . . . . 1 . Botnet 7 | . 3 . 1 . 1 . . . 2 Detonate 1 | . . . . . . . . . 1 Disrupt 3 | . . . 1 . . . . . 2 Fabricators . | . . . . . . . . . . Repair Stations . | . . . . . . . . . . Recycling Units . | . . . . . . . . . . Scanalyzers . | . . . . . . . . . . Garrison Access . | . . . . . . . . . . Data Cores Recovered . | . . . . . . . . . . Used . | . . . . . . . . . . Hacking Detections 10 | . 3 . 1 . 1 1 . 1 3 Full Trace Events 5 | . 2 . 1 . 1 . . . 1 Feedback Events 1 | . . . 1 . . . . . . Corruption 1 | . . . 1 . . . . . . Feedback Blocked . | . . . . . . . . . . Robot Schematics Acquired . | . . . . . . . . . . Robots Built . | . . . . . . . . . . Authchips . | . . . . . . . . . . Time . | . . . . . . . . . . Total Robot Build Rating . | . . . . . . . . . . Part Schematics Acquired . | . . . . . . . . . . Parts Built . | . . . . . . . . . . Authchips . | . . . . . . . . . . Time . | . . . . . . . . . . Total Part Build Rating . | . . . . . . . . . . Parts Repaired . | . . . . . . . . . . Time . | . . . . . . . . . . Parts Recycled . | . . . . . . . . . . Recycled Matter . | . . . . . . . . . . Retrieved Matter . | . . . . . . . . . . Retrieved Components . | . . . . . . . . . . Parts Scanalyzed . | . . . . . . . . . . Part Schematics Acquired . | . . . . . . . . . . Parts Damaged . | . . . . . . . . . . Bothacking | -11 -10 -10 -9 -9 -8 -7 -7 -6 -5 ------------ Run | Scr Mat Min Mat Min Mat Fac DSF Fac Fac Used RIF Installer . | . . . . . . . . . . Robots Hacked . | . . . . . . . . . . Non-combat . | . . . . . . . . . . Combat . | . . . . . . . . . . Robot Hacks Applied . | . . . . . . . . . . Relay Couplers Released . | . . . . . . . . . . Fabnet Peak Effective % . | . . . . . . . . . . Robots Rewired . | . . . . . . . . . . Allies Hacked . | . . . . . . . . . . Hacks Repelled . | . . . . . . . . . . Allies | -11 -10 -10 -9 -9 -8 -7 -7 -6 -5 -------- Run | Scr Mat Min Mat Min Mat Fac DSF Fac Fac Total Allies 1 | . . . . . . . . 1 . Largest Group 1 | . . . . . . . . 1 1 Highest-Rated Group 26 | . . . . . . . . 26 26 Highest-Rated Ally 26 | . . . . . . . . 26 26 Total Orders . | . . . . . . . . . . Ally Attacks . | . . . . . . . . . . Total Damage . | . . . . . . . . . . Kills . | . . . . . . . . . . Allies Corrupted . | . . . . . . . . . . Allies Melted . | . . . . . . . . . . Intel | -11 -10 -10 -9 -9 -8 -7 -7 -6 -5 ------- Run | Scr Mat Min Mat Min Mat Fac DSF Fac Fac Robot Analysis Total . | . . . . . . . . . . Derelict Logs Recovered 2 | . . 2 . . . . . . . Drone Launches . | . . . . . . . . . . Drone Recoveries . | . . . . . . . . . . Exploration | -11 -10 -10 -9 -9 -8 -7 -7 -6 -5 ------------- Run | Scr Mat Min Mat Min Mat Fac DSF Fac Fac Turns Passed 741 | 10 65 70 102 30 146 20 31 86 181 Spaces Moved 1490 | 18 156 138 240 85 280 39 61 149 324 Core 1058 | 18 7 126 106 . 228 39 61 149 324 Treads . | . . . . . . . . . . Legs . | . . . . . . . . . . Wheels . | . . . . . . . . . . Hover . | . . . . . . . . . . Flight 432 | . 149 12 134 85 52 . . . . Fastest Speed 35 | 50 40 40 35 35 35 50 50 50 50 Average Speed 46 | 50 40 49 41 35 47 50 50 50 50 Slowest Speed 50 | 50 50 50 50 35 50 50 50 50 50 Overloaded Moves . | . . . . . . . . . . Propulsion Burnouts . | . . . . . . . . . . Robots Hopped 5 | . 2 . 3 . . . . . . Cave-ins Triggered . | . . . . . . . . . . Exploration Rate (%) 26 | 4 37 45 25 31 32 2 65 7 14 Regions Visited 9 Branch Regions 2 Pre-discovered Areas 1 | . . 1 . . . . . . . Known Exits Taken 3 | . 1 1 . . . 1 . . . Unknown Exits Taken 5 | 1 . . 1 1 1 . . 1 . Scrap Searched . | . . . . . . . . . . Spaces Dug . | . . . . . . . . . . Terrain Destroyed 28 | . . . . . . . . . 28 Melee . | . . . . . . . . . . Projectile . | . . . . . . . . . . AOE 28 | . . . . . . . . . 28 Terrain Rammed . | . . . . . . . . . . Walls Destroyed . | . . . . . . . . . . Machines Disabled . | . . . . . . . . . . Actions | -11 -10 -10 -9 -9 -8 -7 -7 -6 -5 --------- Run | Scr Mat Min Mat Min Mat Fac DSF Fac Fac Total 1524 | 18 154 139 237 84 293 38 60 159 342 Wait 28 | . . . . . 14 . . 4 10 Move 1472 | 18 151 137 233 84 279 38 60 148 324 Hop 5 | . 2 . 3 . . . . . . Pick Up . | . . . . . . . . . . Fast Attach 2 | . 1 . 1 . . . . . . Attach . | . . . . . . . . . . Detach . | . . . . . . . . . . Swap . | . . . . . . . . . . Drop . | . . . . . . . . . . Fire . | . . . . . . . . . . Melee . | . . . . . . . . . . Ram 2 | . . 2 . . . . . . . Kick . | . . . . . . . . . . Crush . | . . . . . . . . . . Escape Stasis 8 | . . . . . . . . . 8 Rewire 7 | . . . . . . . . 7 . Trap . | . . . . . . . . . . Miscellaneous . | . . . . . . . . . . Route ------- -11/Scrapyard -10/Materials (discovered 2 exits: *Min x2) -10/Mines -9/Materials -9/Mines -8/Materials -7/Factory -7/DSF -6/Factory -5/Factory History --------- Turn | Location | Event 3 | -11/Scrapyard | Discovered new exit (range 15) 11 | -11/Scrapyard | Entered Materials 52 | -10/Materials | Discovered new exit (range 15) 69 | -10/Materials | Identified exit to Mines 76 | -10/Materials | Entered Mines 103 | -10/Mines | A weapon hastily lodged in a ceiling crevice suddenly fell to the ground 112 | -10/Mines | Core integrity fell below 50% 123 | -10/Mines | Learned Materials terminal intel 127 | -10/Mines | Identified exit to Materials 143 | -10/Mines | Learned location of Storage (-9) 146 | -10/Mines | Core integrity fell below 20% 146 | -10/Mines | Entered Materials 146 | -9/Materials | Evolved 2 slots: Power x1, Propulsion x1 147 | -9/Materials | Loaded intel: 12 terminal locations 237 | -9/Materials | Core integrity fell below 50% 245 | -9/Materials | Discovered new exit (range 8) 248 | -9/Materials | Entered Mines 256 | -9/Mines | Met a Derelict bent on vengeance 273 | -9/Mines | Discovered new exit (range 16) 274 | -9/Mines | Received a Rocket Launcher from a helpful Derelict 278 | -9/Mines | Entered Materials 278 | -8/Materials | Evolved 2 slots: Propulsion x2 316 | -8/Materials | Build established: Mutant 365 | -8/Materials | Discovered new exit (range 14) 424 | -8/Materials | Entered Factory 424 | -7/Factory | Evolved 2 slots: Propulsion x2 444 | -7/Factory | Identified exit to DSF 444 | -7/Factory | Entered DSF 452 | -7/DSF | Discovered new exit (range 16) 463 | -7/DSF | Additional patrols routed to DSF 475 | -7/DSF | Entered Factory 475 | -6/Factory | Evolved 2 slots: Propulsion x2 546 | -6/Factory | Discovered new exit (range 16) 561 | -6/Factory | Entered another Factory area 561 | -5/Factory | Accompanied by 1 ally 561 | -5/Factory | Evolved 2 slots: Power x1, Propulsion x1 714 | -5/Factory | Core integrity fell below 50% 739 | -5/Factory | Core integrity fell below 20% 742 | -5/Factory | Self-destructed Last Messages --------------- Testing... Terminal linked with 0 systems. Awaiting botnet instructions. >>Trojan(Disrupt) Trojan loaded successfully. Testing... Disruption routine running. >>Trojan(Detonate) Trojan loaded successfully. Testing... Scanning machine control network... Found 4 applicable machines. 5LQSWRNQMT: Nuclear Reactor CYP0PTIEP6: Nuclear Reactor VJN25XG1ED: Fusion Modulator YDKV1X9NL0: Fusion Modulator Infected machine control systems. 00732_ ALERT: Suspicious activity at Terminal F002. Dispatching Investigation squad. 00732_ Slug penetrates Wall. Map ----- +----------------------------------------------------+ | ?????????????????????????????????????????????????? | | ?????????????????????????????????????????????????? | | ?????????????????????????????????????????????????? | | ?????????????????????????????????????????????????? | | ?????????????????????????????????????????????????? | | ?????????????????????????????????????????????????? | | ?????????????????????????????????????????????????? | | ?????????????????????????????????????????????? ??? | | ?????????????????????????????????????????????? ? | | ?????????????????????????????????????????????? # | | ?????????????????????????????????????????????? # | | ????????????????????????????????????????????? # | | ????????????????????????????????????????????? # | | ????????????????????????????????????????????? # | | ????????????????????????????????????????????? # | | ????????????????????????????????????????????# # | | ????????????????????????????????????????????# # | | ????????????????????????????????#+#?????????? # | | ??????????????????????????????### ###+####### | | ??????????????????????????????# ^ | | ?????????????##########???????# | | ?????????????? ]#???????# """"" "" "" | | ?????????????# """ #???????# ""T"" "" "" | | ?????????????# """ #######?# """ """ | | ?????????????# """ !# #?# = """ """ | | ?????????????# # @ ### """ """ | | ?????????????# """ + sp s spY | | ?????????????# """ # ### p | | ?????????????# """ # #?# | | ?????????????# #######?###+################ | | ?????????????##########??????????????????????????? | | ?????????????????????????????????????????????????? | | ?????????????????????????????????????????????????? | | ?????????????????????????????????????????########? | | ????????????????????????????????????????? ? | | ?????????????????????????????????????????? | | ???????????????????????????????????????????"" """ | | ???????????????????????????????????????????"" """ | | ???????????????????????????????????????????"" """ | | ?????????????????????????????????????????? | | ????????????????????????????????????????? ? | | ????????????????????????????????????????? = !? | | ?????????????????????????????????????????#######?? | | ?????????????????????????????????????????????????? | | ?????????????????????????????????????????????????? | | ?????????????????????????????????????????????????? | | ?????????????????????????????????????????????????? | | ?????????????????????????????????????????????????? | | ?????????????????????????????????????????????????? | | ?????????????????????????????????????????????????? | +----------------------------------------------------+ Best States ------------- Heat Dissipation 40 Energy Generation 5 Energy Capacity 100 Matter Stores 288 Matter Capacity 300 Sight Range 16 Terrain Scan Density 10 Resistance: KI 20 Resistance: TH 20 Resistance: EX 20 Resistance: EM 20 Resistance: I 20 Resistance: S 20 Resistance: P 20 Evasion (%) 63 Offensive Hacking 10 Item Schematics ----------------- None Robot Schematics ------------------ None Fabricated ------------ Nothing Alien Tech Used ----------------- None Achievements -------------- None Challenges ------------ None Game ------ Seed FlyingUltimateMicroactuators Manual? 0 Play Time 00:17:44 Cumulative 136.7 hours Start 2022.12.19 @ 22:11:50 End 2022.12.19 @ 22:25:48 Sessions 1 Manual Loads 0 Difficulty Adventurer Special Mode None Game No. 27 Rogue 0 Adventurer 27 Explorer 0 Win Type - Total 1 Types 1/0/0/0/0/0/0/0/0 Lore% 56 Gallery% 65 Achievement% 55 Wizard Run 0 Options --------- ASCII 0 Keyboard 0 Movement Mouse Keybinds 0 Fullscreen 1 Font 18/SmallcapsGlow Map View 76x50 Tactical HUD 1 Map Filters NONE Filters NONE Steam 1 RUN: 2110e0c8-b224-4438-ba4b-a64671801d5d